fUSD/lending_fUSD_20251229
["ID","MTS","AMOUNT","RATE_DAILY","PERIOD"]
[400006036,1767013303394,-9969.2,0.00041095,120]
[400006037,1767013303420,-9969.2,0.00041095,120]
[400006038,1767013303446,-9969.2,0.00041095,120]
[400006039,1767013303470,-9969.2,0.00041095,120]
[400006040,1767013303494,-672.91,0.00041095,120]
[400006041,1767013303518,-672.91,0.00041095,120]
[400006042,1767013303541,-672.91,0.00041095,120]
[400006043,1767013303566,-672.91,0.00041095,120]
[400006044,1767013303590,-672.91,0.00041095,120]
[400006045,1767013303615,-672.91,0.00041095,120]
[400006046,1767013303639,-151.0,0.00041095,120]
[400006047,1767013303663,-1405.01,0.00041095,120]
[400006048,1767013303686,-1405.01,0.00041095,120]
[400006049,1767013303709,-1405.01,0.00041095,120]
[400006050,1767013303734,-1405.01,0.00041095,120]
[400006051,1767013303763,-1405.01,0.00041095,120]
[400006052,1767013303788,-1405.01,0.00041095,120]
[400006053,1767013303813,-7500.0,0.00041095,120]
[400006054,1767013303840,-7500.0,0.00041095,120]
[400006055,1767013303865,-7500.0,0.00041095,120]
[400006056,1767013303889,-7500.0,0.00041095,120]
[400006057,1767013303914,-7500.0,0.00041095,120]
[400006058,1767013303938,-7500.0,0.00041095,120]
[400006059,1767013303961,-7500.0,0.00041095,120]
[400006060,1767013303984,-7500.0,0.00041095,120]
[400006061,1767013304008,-7500.0,0.00041095,120]
[400006062,1767013304035,-7500.0,0.00041095,120]
[400006063,1767013304058,-7500.0,0.00041095,120]
[400006064,1767013304082,-7500.0,0.00041095,120]
[400006065,1767013304106,-7500.0,0.00041095,120]
[400006066,1767013304130,-7500.0,0.00041095,120]
[400006067,1767013304154,-7500.0,0.00041095,120]
[400006068,1767013304178,-7500.0,0.00041095,120]
[400006069,1767013304201,-7500.0,0.00041095,120]
[400006070,1767013304225,-7500.0,0.00041095,120]
[400006071,1767013304249,-7500.0,0.00041095,120]
[400006072,1767013304273,-7500.0,0.00041095,120]
[400006073,1767013304299,-7500.0,0.00041095,120]
[400006074,1767013304324,-7500.0,0.00041095,120]
[400006075,1767013304349,-7500.0,0.00041095,120]
[400006076,1767013304372,-7500.0,0.00041095,120]
[400006077,1767013304396,-500.0,0.00041095,120]
[400006078,1767013304418,-500.0,0.00041095,120]
[400006079,1767013304442,-500.0,0.00041095,120]
[400006080,1767013304466,-500.0,0.00041095,120]
[400006081,1767013304489,-500.0,0.00041095,120]
[400006082,1767013304513,-500.0,0.00041095,120]
[400006083,1767013304538,-500.0,0.00041095,120]
[400006084,1767013304563,-250.0,0.00041096,80]
[400006085,1767013304588,-164.025428,0.00041293,120]
[400006086,1767013304612,-373.6485393,0.00041399,120]
[400006087,1767013304635,-162.38152614,0.000414,120]
[400006088,1767013304660,-203.37,0.00041425,90]
[400006089,1767013304686,-263.22073191,0.00041499,120]
[400006090,1767013304709,-256.289732,0.00041499,120]
[400006091,1767013304734,-500.0,0.00041499,120]
[400006092,1767013304764,-500.0,0.00041499,120]
[400006093,1767013304789,-500.0,0.00041499,120]
[400006094,1767013304813,-500.0,0.00041499,120]
[400006095,1767013304839,-634.97591623,0.00041499,120]
[400006096,1767013304864,-846.86,0.00041499,120]
[400006097,1767013304889,-846.86,0.00041499,120]
[400006098,1767013304913,-846.86,0.00041499,120]
[400006099,1767013304936,-846.86,0.00041499,120]
[400006100,1767013305101,-846.86,0.00041499,120]
[400006101,1767013305127,-846.86,0.00041499,120]
[400006102,1767013305152,-846.86,0.00041499,120]
[400006103,1767013305177,-846.86,0.00041499,120]
[400006104,1767013305202,-846.86,0.00041499,120]
[400006105,1767013305228,-846.86,0.00041499,120]
[400006106,1767013305252,-846.86,0.00041499,120]
[400006107,1767013305276,-846.86,0.00041499,120]
[400006108,1767013305300,-846.86,0.00041499,120]
[400006109,1767013305324,-846.86,0.00041499,120]
[400006110,1767013305348,-846.86,0.00041499,120]
[400006111,1767013305372,-846.86,0.00041499,120]
[400006112,1767013305396,-846.86,0.00041499,120]
[400006113,1767013305420,-846.87330983,0.00041499,120]
[400006114,1767013305444,-500.0,0.00041499,120]
[400006115,1767013305467,-300.0,0.00041499,120]
[400006116,1767013305491,-500.0,0.00041499,120]
[400006117,1767013305515,-311.1,0.00041499,120]
[400006118,1767013305539,-500.0,0.00041499,120]
[400006119,1767013305562,-500.0,0.00041499,120]
[400006120,1767013305586,-500.0,0.00041499,120]
[400006121,1767013305609,-260.52700895,0.00041499,120]
[400006122,1767013305632,-500.0,0.00041499,120]
[400006123,1767013305655,-500.0,0.00041499,120]
[400006124,1767013305679,-518.5,0.00041499,120]
[400006125,1767013305703,-500.0,0.00041499,120]
[400006126,1767013305726,-500.0,0.00041499,120]
[400006127,1767013305754,-537.6845,0.00041499,120]
[400006128,1767013305778,-500.0,0.00041499,120]
[400006129,1767013305803,-500.0,0.00041499,120]
[400006130,1767013305828,-500.0,0.00041499,120]
[400006131,1767013305851,-557.5788265,0.00041499,120]
[400006132,1767013305876,-500.0,0.00041499,120]
[400006133,1767013305899,-201.93286098,0.00041499,120]
[400006134,1767013305923,-500.0,0.00041499,120]
[400006135,1767013305947,-500.0,0.00041499,120]
[400006136,1767013305971,-500.0,0.00041499,120]
[400006137,1767013305995,-250.0,0.00041499,120]
[400006138,1767013306019,-500.0,0.00041499,120]
[400006139,1767013306044,-500.0,0.00041499,120]
[400006140,1767013306068,-500.0,0.00041499,120]
[400006141,1767013306092,-155.66396381,0.00041499,120]
[400006142,1767013306116,-500.0,0.00041499,120]
[400006143,1767013306141,-500.0,0.00041499,120]
[400006144,1767013306165,-500.0,0.00041499,120]
[400006145,1767013306190,-500.0,0.00041499,120]
[400006146,1767013306214,-151.0,0.00041499,120]
[400006147,1767013306240,-9969.2,0.00041499,120]
[400006148,1767013306264,-500.0,0.00041499,120]
[400006149,1767013306288,-9969.2,0.00041499,120]
[400006150,1767013306311,-633.35205251,0.00041499,120]
[400006151,1767013306335,-520.0,0.00041499,120]
[400006152,1767013306359,-9969.2,0.00041499,120]
[400006153,1767013306384,-151.0,0.00041499,120]
[400006154,1767013306409,-9969.2,0.00041499,120]
[400006155,1767013306433,-500.0,0.00041499,120]
[400006156,1767013306457,-9969.2,0.00041499,120]
[400006157,1767013306480,-520.0,0.00041499,120]
[400006158,1767013306504,-9969.2,0.00041499,120]
[400006159,1767013306528,-151.0,0.00041499,120]
[400006160,1767013306553,-9969.2,0.00041499,120]
[400006161,1767013306577,-500.0,0.00041499,120]
[400006162,1767013306602,-9969.2,0.00041499,120]
[400006163,1767013306626,-250.0,0.00041499,120]
[400006164,1767013306653,-9969.2,0.00041499,120]
[400006165,1767013306679,-9969.2,0.00041499,120]
[400006166,1767013306704,-151.0,0.00041499,120]
[400006167,1767013306729,-9969.2,0.00041499,120]
[400006168,1767013306759,-250.0,0.00041499,120]
[400006169,1767013306786,-9969.2,0.00041499,120]
[400006170,1767013306811,-9969.2,0.00041499,120]
[400006171,1767013306836,-151.0,0.00041499,120]
[400006172,1767013306860,-250.0,0.00041499,120]
[400006173,1767013306886,-9969.2,0.00041499,120]
[400006174,1767013306911,-500.0,0.00041499,120]
[400006175,1767013306938,-9969.2,0.00041499,120]
[400006176,1767013306967,-9969.2,0.00041499,120]
[400006177,1767013306994,-151.0,0.00041499,120]
[400006178,1767013307020,-250.0,0.00041499,120]
[400006179,1767013307046,-500.0,0.00041499,120]
[400006180,1767013307073,-9969.2,0.00041499,120]
[400006181,1767013307098,-414.0,0.00041499,120]
[400006182,1767013307123,-9969.314413,0.00041499,120]
[400006183,1767013307147,-151.0,0.00041499,120]
[400006184,1767013307176,-250.0,0.00041499,120]
[400006185,1767013307202,-500.0,0.00041499,120]
[400006186,1767013307228,-429.318,0.00041499,120]
[400006187,1767013307255,-1000.0,0.00041499,120]
[400006188,1767013307280,-672.91,0.00041499,120]
[400006189,1767013307311,-250.0,0.00041499,120]
[400006190,1767013307336,-500.0,0.00041499,120]
[400006191,1767013307363,-500.0,0.00041499,120]
[400006192,1767013307387,-672.91,0.00041499,120]
[400006193,1767013307415,-445.202766,0.00041499,120]
[400006194,1767013307441,-672.91,0.00041499,120]
[400006195,1767013307466,-1000.0,0.00041499,120]
[400006196,1767013307637,-250.0,0.00041499,120]
[400006197,1767013307666,-500.0,0.00041499,120]
[400006198,1767013307691,-672.91,0.00041499,120]
[400006199,1767013307720,-500.0,0.00041499,120]
[400006200,1767013307747,-672.91,0.00041499,120]
[400006201,1767013307777,-461.67526834,0.00041499,120]
[400006202,1767013307804,-1000.0,0.00041499,120]
[400006203,1767013307829,-672.91,0.00041499,120]
[400006204,1767013307855,-500.0,0.00041499,120]
[400006205,1767013307883,-500.0,0.00041499,120]
[400006206,1767013307908,-672.91,0.00041499,120]
[400006207,1767013307933,-672.91,0.00041499,120]
[400006208,1767013307958,-1000.0,0.00041499,120]
[400006209,1767013307982,-478.75725327,0.00041499,120]
[400006210,1767013308008,-672.91,0.00041499,120]
[400006211,1767013308033,-500.0,0.00041499,120]
[400006212,1767013308057,-500.0,0.00041499,120]
[400006213,1767013308082,-672.91,0.00041499,120]
[400006214,1767013308111,-1000.0,0.00041499,120]
[400006215,1767013308136,-672.91,0.00041499,120]
[400006216,1767013308164,-496.47127164,0.00041499,120]
[400006217,1767013308191,-500.0,0.00041499,120]
[400006218,1767013308218,-250.0,0.00041499,120]
[400006219,1767013308244,-672.91,0.00041499,120]
[400006220,1767013308271,-1000.0,0.00041499,120]
[400006221,1767013308297,-672.91,0.00041499,120]
[400006222,1767013308324,-514.84070869,0.00041499,120]
[400006223,1767013308352,-288.34420329,0.00041499,120]
[400006224,1767013308377,-672.91,0.00041499,120]
[400006225,1767013308401,-672.91,0.00041499,120]
[400006226,1767013308428,-1000.0,0.00041499,120]
[400006227,1767013308453,-672.91,0.00041499,120]
[400006228,1767013308479,-533.88981491,0.00041499,120]
[400006229,1767013308504,-672.91,0.00041499,120]
[400006230,1767013308530,-672.93359538,0.00041499,120]
[400006231,1767013308557,-553.64373807,0.00041499,120]
[400006232,1767013308583,-574.12855637,0.00041499,120]
[400006233,1767013308607,-500.0,0.00041499,120]
[400006234,1767013308633,-1000.0,0.00041499,120]
[400006235,1767013308658,-500.0,0.00041499,120]
[400006236,1767013308684,-500.0,0.00041499,120]
[400006237,1767013308709,-595.37131296,0.00041499,120]
[400006238,1767013308739,-346.55569035,0.00041499,120]
[400006239,1767013308767,-500.0,0.00041499,120]
[400006240,1767013308793,-617.40005154,0.00041499,120]
[400006241,1767013308818,-500.0,0.00041499,120]
[400006242,1767013308845,-500.0,0.00041499,120]
[400006243,1767013308875,-640.24385345,0.00041499,120]
[400006244,1767013308902,-500.0,0.00041499,120]
[400006245,1767013308929,-599.06277978,0.00041499,120]
[400006246,1767013308953,-500.0,0.00041499,120]
[400006247,1767013308979,-500.0,0.00041499,120]
[400006248,1767013309004,-500.0,0.00041499,120]
[400006249,1767013309029,-500.0,0.00041499,120]
[400006250,1767013309054,-500.0,0.00041499,120]
[400006251,1767013309081,-500.0,0.00041499,120]
[400006252,1767013309106,-500.0,0.00041499,120]
[400006253,1767013309130,-500.0,0.00041499,120]
[400006254,1767013309154,-1500.0,0.00041499,120]
[400006255,1767013309181,-250.0,0.00041499,120]
[400006256,1767013309205,-250.0,0.00041499,120]
[400006257,1767013309229,-250.0,0.00041499,120]
[400006258,1767013309254,-250.0,0.00041499,120]
[400006259,1767013309278,-250.0,0.00041499,120]
[400006260,1767013309303,-250.0,0.00041499,120]
[400006261,1767013309328,-250.0,0.00041499,120]
[400006262,1767013309352,-250.0,0.00041499,120]
[400006263,1767013309376,-1405.01,0.00041499,120]
[400006264,1767013309401,-1405.01,0.00041499,120]
[400006265,1767013309426,-1405.01,0.00041499,120]
[400006266,1767013309450,-1405.01,0.00041499,120]
[400006267,1767013309476,-1405.01,0.00041499,120]
[400006268,1767013309501,-1405.01,0.00041499,120]
[400006269,1767013309525,-1405.01,0.00041499,120]
[400006270,1767013309550,-1405.01,0.00041499,120]
[400006271,1767013309576,-1405.01,0.00041499,120]
[400006272,1767013309603,-1405.01,0.00041499,120]
[400006273,1767013309628,-1405.01,0.00041499,120]
[400006274,1767013309653,-1405.01,0.00041499,120]
[400006275,1767013309679,-1405.01,0.00041499,120]
[400006276,1767013309704,-1405.01,0.00041499,120]
[400006277,1767013309729,-1405.01,0.00041499,120]
[400006278,1767013309760,-1405.01,0.00041499,120]
[400006279,1767013309786,-1405.01,0.00041499,120]
[400006280,1767013309814,-1405.19542362,0.00041499,120]
[400006281,1767013309842,-500.0,0.00041499,120]
[400006282,1767013309867,-500.0,0.00041499,120]
[400006283,1767013309892,-500.0,0.00041499,120]
[400006284,1767013309917,-500.0,0.00041499,120]
[400006285,1767013309941,-500.0,0.00041499,120]
[400006286,1767013309965,-500.0,0.00041499,120]
[400006287,1767013309989,-500.0,0.00041499,120]
[400006288,1767013310014,-500.0,0.00041499,120]
[400006289,1767013310039,-500.0,0.00041499,120]
[400006290,1767013310194,-500.0,0.00041499,120]
[400006291,1767013310220,-500.0,0.00041499,120]
[400006292,1767013310246,-500.0,0.00041499,120]
[400006293,1767013310270,-509.98894465,0.00041499,120]
[400006294,1767013310301,-2960676.35180047,0.000415,120]
[400006295,1767013310326,-286.0,0.000415,120]
[400006296,1767013310352,-266.9447586,0.000415,120]
[400006297,1767013310377,-554.94073115,0.000415,60]
[400006298,1767013310401,-151.0,0.000415,120]
[400006299,1767013310426,-241.287,0.000415,120]
[400006300,1767013310450,-500.0,0.000415,60]
[400006301,1767013310475,-500.0,0.000415,60]
[400006302,1767013310499,-151.0,0.000415,120]
[400006303,1767013310524,-151.0,0.000415,120]
[400006304,1767013310548,-151.0,0.000415,120]
[400006305,1767013310571,-151.0,0.000415,120]
[400006306,1767013310595,-151.0,0.000415,120]
[400006307,1767013310618,-151.0,0.000415,120]
[400006308,1767013310642,-151.0,0.000415,120]
[400006309,1767013310667,-151.0,0.000415,120]
[400006310,1767013310694,-151.0,0.000415,120]
[400006311,1767013310718,-158.193572,0.000415,120]
[400006312,1767013310743,-151.0,0.000415,120]
[400006313,1767013310771,-151.0,0.000415,120]
[400006314,1767013310796,-151.0,0.000415,120]
[400006315,1767013310820,-151.0,0.000415,120]
[400006316,1767013310844,-193.501507,0.000415,90]
[400006317,1767013310868,-205.031785,0.000415,120]
[400006318,1767013310891,-1443.304395,0.000415,120]
[400006319,1767013310916,-1443.304395,0.000415,120]
[400006320,1767013310940,-1443.304395,0.000415,120]
[400006321,1767013310965,-1443.304395,0.000415,120]
[400006322,1767013310989,-1443.304395,0.000415,120]
[400006323,1767013311012,-1443.304395,0.000415,120]
[400006324,1767013311036,-1443.304395,0.000415,120]
[400006325,1767013311060,-1443.304395,0.000415,120]
[400006326,1767013311084,-352.483327,0.000415,120]
[400006327,1767013311109,-352.483327,0.000415,120]
[400006328,1767013311147,-151.0,0.000415,120]
[400006329,1767013311175,-352.483327,0.000415,120]
[400006330,1767013311200,-154.15747,0.000415,120]
[400006331,1767013311225,-352.483327,0.000415,120]
[400006332,1767013311252,-352.483327,0.000415,120]
[400006333,1767013311279,-352.483327,0.000415,120]
[400006334,1767013311305,-352.483327,0.000415,120]
[400006335,1767013311330,-352.483327,0.000415,120]
[400006336,1767013311354,-288.792626,0.000415,120]
[400006337,1767013311380,-151.0,0.000415,120]
[400006338,1767013311406,-151.0,0.000415,120]
[400006339,1767013311432,-151.0,0.000415,120]
[400006340,1767013311457,-183.818599,0.000415,120]
[400006341,1767013311481,-151.0,0.000415,120]
[400006342,1767013311506,-151.0,0.000415,120]
[400006343,1767013311531,-151.0,0.000415,120]
[400006344,1767013311561,-151.0,0.000415,120]
[400006345,1767013311586,-151.0,0.000415,120]
[400006346,1767013311612,-432.068318,0.000415,120]
[400006347,1767013311638,-432.068318,0.000415,120]
[400006348,1767013311664,-432.068318,0.000415,120]
[400006349,1767013311691,-432.068318,0.000415,120]
[400006350,1767013311717,-151.0,0.000415,120]
[400006351,1767013311743,-896.82,0.00041639,80]
[400006352,1767013311774,-150.0,0.00041899,120]
[400006353,1767013311805,-1000.0,0.00041999,120]
[400006354,1767013311833,-50000.0,0.00042,62]
[400006355,1767013311857,-20000.0,0.00042,90]
[400006356,1767013311882,-5000.0,0.00042,120]
[400006357,1767013311907,-721.0,0.00042,120]
[400006358,1767013311932,-300349.0,0.00042,120]
[400006359,1767013311963,-150.0,0.00042011,120]
[400006360,1767013311988,-500.0,0.00042048,60]
[400006361,1767013312014,-500.0,0.00042048,60]
[400006362,1767013312039,-373.64853929,0.00042052,120]
[400006363,1767013312064,-365.25812438,0.000421,120]
[400006364,1767013312090,-300.291137,0.00042138,110]
[400006365,1767013312117,-34240.17341644,0.000424,120]
[400006366,1767013312142,-284.84,0.00042468,120]
[400006367,1767013312168,-1083.0,0.00042475,120]
[400006368,1767013312194,-150.0,0.00042478,120]
[400006369,1767013312220,-150.0,0.000425,120]
[400006370,1767013312248,-174.61801,0.000425,120]
[400006371,1767013312273,-237.536271,0.000425,120]
[400006372,1767013312300,-192.49708535,0.00042549,120]
[400006373,1767013312324,-299.73918347,0.00042552,120]
[400006374,1767013312350,-150.0,0.00042553,120]
[400006375,1767013312375,-225.67119922,0.00042556,120]
[400006376,1767013312405,-666.8,0.00042556,120]
[400006377,1767013312432,-335.68811046,0.00042556,120]
[400006378,1767013312458,-213.10198802,0.00042568,120]
[400006379,1767013312483,-213.10198804,0.00042568,120]
[400006380,1767013312508,-500.0,0.00042596,60]
[400006381,1767013312532,-500.0,0.00042596,60]
[400006382,1767013312558,-151.0,0.00042596,120]
[400006383,1767013312583,-151.0,0.00042596,120]
[400006384,1767013312612,-151.0,0.00042596,120]
[400006385,1767013312825,-151.0,0.00042596,120]
[400006386,1767013312852,-151.0,0.00042596,120]
[400006387,1767013312880,-151.0,0.00042596,120]
[400006388,1767013312906,-151.0,0.00042596,120]
[400006389,1767013312930,-201.818089,0.00042596,120]
[400006390,1767013312957,-432.068318,0.00042596,120]
[400006391,1767013312983,-432.068318,0.00042596,120]
[400006392,1767013313008,-432.068318,0.00042596,120]
[400006393,1767013313034,-432.068318,0.00042596,120]
[400006394,1767013313059,-151.0,0.00042596,120]
[400006395,1767013313087,-150.0,0.000426,120]
[400006396,1767013313113,-151.0,0.00042617,120]
[400006397,1767013313139,-151.0,0.00042617,120]
[400006398,1767013313165,-151.0,0.00042617,120]
[400006399,1767013313190,-151.0,0.00042617,120]
[400006400,1767013313217,-234.521209,0.00042617,120]
[400006401,1767013313244,-151.0,0.00042617,120]
[400006402,1767013313269,-151.0,0.00042617,120]
[400006403,1767013313296,-1443.304395,0.00042617,120]
[400006404,1767013313321,-1443.304395,0.00042617,120]
[400006405,1767013313346,-1443.304395,0.00042617,120]
[400006406,1767013313371,-1443.304395,0.00042617,120]
[400006407,1767013313396,-1443.304395,0.00042617,120]
[400006408,1767013313421,-1443.304395,0.00042617,120]
[400006409,1767013313446,-1443.304395,0.00042617,120]
[400006410,1767013313471,-1443.304395,0.00042617,120]
[400006411,1767013313496,-352.483327,0.00042617,120]
[400006412,1767013313520,-352.483327,0.00042617,120]
[400006413,1767013313546,-352.483327,0.00042617,120]
[400006414,1767013313571,-352.483327,0.00042617,120]
[400006415,1767013313596,-352.483327,0.00042617,120]
[400006416,1767013313621,-352.483327,0.00042617,120]
[400006417,1767013313645,-352.483327,0.00042617,120]
[400006418,1767013313671,-352.483327,0.00042617,120]
[400006419,1767013313697,-150.0,0.00042696,120]
[400006420,1767013313722,-150.0,0.000427,120]
[400006421,1767013313747,-373.64853929,0.00042705,120]
[400006422,1767013313775,-1000.0,0.00042741,120]
[400006423,1767013313801,-150.0,0.00042748,120]
[400006424,1767013313833,-207.422242,0.000428,120]
[400006425,1767013313857,-5000.0,0.000428,90]
[400006426,1767013313881,-267.7,0.000428,120]
[400006427,1767013313908,-151.0,0.00042806,120]
[400006428,1767013313932,-151.0,0.00042806,120]
[400006429,1767013313956,-151.0,0.00042806,120]
[400006430,1767013313980,-151.0,0.00042806,120]
[400006431,1767013314006,-151.0,0.00042806,120]
[400006432,1767013314031,-151.0,0.00042806,120]
[400006433,1767013314056,-151.0,0.00042806,120]
[400006434,1767013314080,-151.0,0.00042806,120]
[400006435,1767013314104,-151.0,0.00042806,120]
[400006436,1767013314131,-151.0,0.00042806,120]
[400006437,1767013314164,-151.0,0.00042806,120]
[400006438,1767013314194,-151.0,0.00042806,120]
[400006439,1767013314222,-151.0,0.00042806,120]
[400006440,1767013314252,-151.0,0.00042806,120]
[400006441,1767013314280,-151.0,0.00042806,120]
[400006442,1767013314305,-151.0,0.00042806,120]
[400006443,1767013314331,-151.0,0.00042806,120]
[400006444,1767013314358,-151.0,0.00042806,120]
[400006445,1767013314385,-151.0,0.00042806,120]
[400006446,1767013314412,-151.0,0.00042806,120]
[400006447,1767013314438,-151.0,0.00042806,120]
[400006448,1767013314465,-432.068318,0.00042806,120]
[400006449,1767013314491,-432.068318,0.00042806,120]
[400006450,1767013314517,-432.068318,0.00042806,120]
[400006451,1767013314543,-432.068318,0.00042806,120]
[400006452,1767013314569,-432.068318,0.00042806,120]
[400006453,1767013314595,-432.068318,0.00042806,120]
[400006454,1767013314621,-432.068318,0.00042806,120]
[400006455,1767013314647,-432.068318,0.00042806,120]
[400006456,1767013314673,-432.068318,0.00042806,120]
[400006457,1767013314700,-432.068318,0.00042806,120]
[400006458,1767013314727,-432.068318,0.00042806,120]
[400006459,1767013314756,-432.06832,0.00042806,120]
[400006460,1767013314783,-151.0,0.00042806,120]
[400006461,1767013314809,-151.0,0.00042806,120]
[400006462,1767013314866,-154.17,0.00042806,120]
[400006463,1767013314892,-201.096682,0.00042827,120]
[400006464,1767013314916,-151.0,0.00042827,120]
[400006465,1767013314940,-151.0,0.00042827,120]
[400006466,1767013314965,-151.0,0.00042827,120]
[400006467,1767013314988,-151.0,0.00042827,120]
[400006468,1767013315013,-151.0,0.00042827,120]
[400006469,1767013315038,-151.0,0.00042827,120]
[400006470,1767013315063,-151.0,0.00042827,120]
[400006471,1767013315087,-151.0,0.00042827,120]
[400006472,1767013315111,-167.374059,0.00042827,120]
[400006473,1767013315136,-1443.304395,0.00042827,120]
[400006474,1767013315162,-1443.304395,0.00042827,120]
[400006475,1767013315187,-1443.304395,0.00042827,120]
[400006476,1767013315214,-1443.304386,0.00042827,120]
[400006477,1767013315240,-352.483327,0.00042827,120]
[400006478,1767013315267,-352.483327,0.00042827,120]
[400006479,1767013315433,-352.483327,0.00042827,120]
[400006480,1767013315459,-352.483324,0.00042827,120]
[400006481,1767013315484,-200.0,0.00042827,120]
[400006482,1767013315510,-187.78006525,0.00042981,60]
[400006483,1767013315534,-194.72792766,0.00042981,120]
[400006484,1767013315559,-383.72,0.00042982,120]
[400006485,1767013315584,-449.20574668,0.00042982,120]
[400006486,1767013315608,-151.0,0.00042997,60]
[400006487,1767013315632,-156.587,0.00042997,75]
[400006488,1767013315656,-162.380719,0.00042997,90]
[400006489,1767013315680,-168.3888056,0.00042997,120]
[400006490,1767013315705,-150.0,0.00043,120]
[400006491,1767013315729,-2473.224929,0.00043,120]
[400006492,1767013315754,-1798.57699502,0.00043,120]
[400006493,1767013315780,-203.0,0.00043,64]
[400006494,1767013315807,-2008.319258,0.00043,120]
[400006495,1767013315832,-334.06562919,0.00043,120]
[400006496,1767013315857,-316.50535968,0.00043,120]
[400006497,1767013315882,-1676.24089141,0.00043,120]
[400006498,1767013315906,-334.58988075,0.00043,120]
[400006499,1767013315931,-3350.6505645,0.00043,120]
[400006500,1767013315955,-10000.0,0.00043,120]
[400006501,1767013315979,-2837.0,0.00043,120]
[400006502,1767013316005,-1615.72559325,0.00043,120]
[400006503,1767013316029,-204.46,0.00043014,120]
[400006504,1767013316054,-152.79,0.00043047,120]
[400006505,1767013316077,-3000.0,0.000431,120]
[400006506,1767013316101,-3000.0,0.000431,120]
[400006507,1767013316127,-500.0,0.00043144,60]
[400006508,1767013316151,-500.0,0.00043144,60]
[400006509,1767013316177,-152.79,0.00043147,120]
[400006510,1767013316208,-150.0,0.00043196,120]
[400006511,1767013316239,-152.79,0.00043247,120]
[400006512,1767013316265,-168.0,0.000433,120]
[400006513,1767013316290,-181.0,0.000433,120]
[400006514,1767013316315,-150.0,0.00043337,120]
[400006515,1767013316341,-152.79,0.00043347,120]
[400006516,1767013316365,-3000.0,0.000434,120]
[400006517,1767013316391,-152.79,0.00043447,120]
[400006518,1767013316419,-152.79,0.00043547,120]
[400006519,1767013316445,-1444.0,0.00043562,120]
[400006520,1767013316473,-152.79,0.00043647,120]
[400006521,1767013316498,-500.0,0.00043692,60]
[400006522,1767013316523,-3000.0,0.000437,120]
[400006523,1767013316552,-500.37186452,0.000437,120]
[400006524,1767013316576,-152.79,0.00043747,120]
[400006525,1767013316602,-150.0,0.00043773,120]
[400006526,1767013316627,-150.0,0.00043798,120]
[400006527,1767013316655,-1089.0,0.00043836,62]
[400006528,1767013316680,-1234.0,0.00043836,74]
[400006529,1767013316705,-1171.5,0.00043836,66]
[400006530,1767013316732,-1194.5,0.00043836,115]
[400006531,1767013316760,-889.5,0.00043836,77]
[400006532,1767013316786,-1154.5,0.00043836,102]
[400006533,1767013316812,-919.0,0.00043836,119]
[400006534,1767013316840,-1133.5,0.00043836,64]
[400006535,1767013316865,-1192.0,0.00043836,69]